[Event "87th Spanish Championship 2022"]
[Site "Linares"]
[Date "2022.08.17"]
[Round "8.1"]
[White "Yuffa, Daniil"]
[Black "Iturrizaga Bonelli, Eduardo"]
[Result "1/2-1/2"]
[ECO "E11"]
[WhiteElo "2603"]
[BlackElo "2619"]
[Annotator "TA"]
[PlyCount "180"]
[EventDate "2022.08.11"]
[EventType "swiss"]
[EventCountry "ESP"]
[SourceTitle "playchess.com"]
[Source "ChessBase"]
[SourceQuality "1"]
[TimeControl "5400+30"]

{[%evp 15,180,22,36,31,28,32,35,17,18,12,8,20,9,8,7,11,13,5,4,0,0,0,0,0,0,-8,0,-20,0,0,25,18,18,2,18,0,0,0,3,12,30,-11,30,30,30,0,0,0,8,8,67,7,21,0,0,0,0,0,0,0,0,0,16,0,0,0,24,10,10,11,37,27,37,1,14,0,7,0,0,0,0,0,0,0,0,0,0,0,0,0,0,0,0,0,0,0,0,0,0,0,0,0,0,0,0,0,0,0,0,0,0,0,0,0,0,0,0,0,0,0,0,0,0,0,998,1787,2795,2142,587,0,5589,5418,5098,5068,2795,0,0,0,0,0,0,0,0,0,0,0,0,0,0,0,0,0,0,0,0,0,0,0,0,0,0,0,0,0,0,0,0]} 1. d4 {[%emt 0:00:13]} Nf6 {[%emt 0:00:16]} 2. c4 {[%emt 0:00:12]} e6 {[%emt 0:00:04]} 3. Nf3 {[%emt 0:00:16]} Bb4+ {[%emt 0:00:27]} 4. Bd2 {[%emt 0:00:07]} Bxd2+ {[%emt 0:00:47]} 5. Qxd2 {[%emt 0:00:24]} b6 {[%emt 0:00:38]} 6. g3 {[%emt 0:00:24]} Bb7 {[%emt 0:00:03]} 7. Bg2 {[%emt 0:00:14]} O-O {[%emt 0:00:04]} 8. O-O {[%emt 0:00:11]} d6 {[%emt 0:00:21]} 9. Rd1 {[%emt 0:06:56] E16: Queen's Indian: 4 g3 Bb7 5 Bg2 Bb4+.} Nbd7 {[%emt 0:00:43]} 10. Qc2 {[%emt 0:02:14]} Be4 {[%emt 0:01:08]} 11. Qc1 {[%emt 0:00:12] White is slightly better.} Bb7 {[%emt 0:00:06] [#]} 12. Nc3 $146 {[%emt 0:05:01]} ({Predecessor:} 12. Ne1 Qc8 13. Nc3 Bxg2 14. Nxg2 Qb7 15. f3 a6 16. e4 b5 17. Ne3 bxc4 18. Nxc4 {0-1 (66) Dzagnidze,N (2529)-Tan,Z (2504) Huaian 2016}) 12... Ne4 {[%emt 0:00:13]} 13. Nxe4 {[%emt 0:09:26]} Bxe4 {[%emt 0:00:20]} 14. Qf4 {[%emt 0:00:04]} Nf6 {[%emt 0:01:37]} 15. Ne1 {[%emt 0:03:51]} Bxg2 {[%emt 0:00:26]} 16. Nxg2 {[%emt 0:00:04]} Qe7 {[%emt 0:04:38]} 17. Ne3 {[%emt 0:00:33]} Rfe8 {[%emt 0:01:42]} 18. Qf3 {[%emt 0:01:16]} g6 {[%emt 0:02:32]} 19. Qc6 {[%emt 0:02:59]} h5 {[%emt 0:02:57]} 20. h3 {[%emt 0:02:59]} Kg7 {[%emt 0:00:18][%cal Oh5h4]} 21. b4 {[%emt 0:01:54]} a5 {[%emt 0:16:59]} 22. b5 {[%emt 0:01:14]} Qd7 {[%emt 0:03:23]} 23. Qxd7 {[%emt 0:12:04]} Nxd7 {[%emt 0:00:14]} 24. Ng2 {[%emt 0:05:28]} e5 25. Ne3 {[%emt 0:05:22]} Rac8 {[%emt 0:04:58]} 26. Kf1 {[%emt 0:01:33]} Nf6 {[%emt 0:05:54]} 27. Rac1 {[%emt 0:05:03]} exd4 {[%emt 0:02:25]} 28. Nd5 {[%emt 0:03:51]} Ne4 {[%emt 0:17:10]} 29. Rxd4 {[%emt 0:00:33]} f5 {[%emt 0:00:05][%cal Oh5h4]} 30. e3 {[%emt 0:03:57]} Nc5 {[%emt 0:00:11]} 31. Ke2 {[%emt 0:04:06]} Ne6 {[%emt 0:00:41]} 32. Rdd1 {[%emt 0:00:42]} Ng5 {[%emt 0:01:49]} (32... Rh8 $11) 33. Rh1 {[%emt 0:00:22] White is more active.} (33. g4 $1 $14) 33... Ne4 {[%emt 0:01:15]} 34. Rhg1 {[%emt 0:00:35]} (34. g4 $5) 34... Nf6 {[%emt 0:00:22] Against g4} 35. Rgd1 {[%emt 0:02:43]} Re4 {[%emt 0:00:44]} 36. f3 {[%emt 0:01:27]} Re5 {[%emt 0:00:30]} 37. Kf2 {[%emt 0:00:34]} Kf7 {[%emt 0:00:17]} 38. Rd4 {[%emt 0:00:38]} Kg7 {[%emt 0:05:19]} 39. Rg1 {[%emt 0:01:26]} Kf7 {[%emt 0:00:35]} 40. Re1 {[%emt 0:02:20]} Kg7 {[%emt 0:01:07]} 41. e4 {[%emt 0:04:24]} fxe4 {[%emt 0:01:20]} 42. f4 {[%emt 0:00:05]} Ree8 {[%emt 0:00:59]} (42... Re6 {looks sharper.} 43. Ke3 c6 44. bxc6 Rxc6 45. Red1 Kf7) 43. Nxf6 {[%emt 0:00:24]} Kxf6 $14 {[%emt 0:00:05][%mdl 4096] Endgame KRR-KRR} 44. Ke3 {[%emt 0:01:59]} Re6 {[%emt 0:01:03]} 45. Red1 {[%emt 0:00:31][%mdl 1024] White has compensation.} Rce8 {[%emt 0:03:03]} 46. Rd5 {[%emt 0:00:08]} R6e7 {[%emt 0:00:17]} 47. Rg5 {[%emt 0:00:56]} Re6 {[%emt 0:03:21]} 48. Rf1 {[%emt 0:01:48]} Kg7 {[%emt 0:01:55]} 49. f5 {[%emt 0:03:32]} Rf6 {[%emt 0:00:06]} 50. Rxg6+ {[%emt 0:00:21]} Rxg6 {[%emt 0:00:05]} 51. fxg6 {[%emt 0:00:02]} Kxg6 $11 {[%emt 0:00:10] KR-KR} 52. Rf4 {[%emt 0:00:26]} Re5 {[%emt 0:00:43]} 53. Rxe4 {[%emt 0:00:23]} Rc5 {[%emt 0:00:06]} 54. Kd4 {[%emt 0:01:00]} Kf6 {[%emt 0:02:04]} 55. a4 {[%emt 0:00:47]} Rg5 {[%emt 0:01:09]} 56. Re3 {[%emt 0:01:14]} Kf7 {[%emt 0:00:42]} 57. Ke4 {[%emt 0:01:16]} Rc5 {[%emt 0:00:13]} 58. Kd3 {[%emt 0:00:49]} d5 {[%emt 0:02:10]} 59. Rf3+ {[%emt 0:01:24]} Ke6 {[%emt 0:00:19]} 60. Rf4 {[%emt 0:00:12]} dxc4+ {[%emt 0:02:43]} 61. Rxc4 {[%emt 0:00:03]} Rg5 {[%emt 0:00:07]} 62. g4 {[%emt 0:02:37]} hxg4 {[%emt 0:00:04]} 63. hxg4 {[%emt 0:01:03]} Kd5 {[%emt 0:00:13]} 64. Rd4+ {[%emt 0:00:23]} Kc5 {[%emt 0:00:20]} 65. Rc4+ {[%emt 0:00:48]} Kd5 {[%emt 0:00:06]} 66. Rd4+ {[%emt 0:00:08]} Kc5 {[%emt 0:00:04]} 67. Ke3 {[%emt 0:00:09]} c6 {[%emt 0:03:51]} 68. bxc6 {[%emt 0:00:17]} Kxc6 {[%emt 0:00:03]} 69. Kf4 {[%emt 0:00:19]} Rc5 $2 {[%emt 0:04:58][%mdl 8192]} (69... Rg7 $11) 70. g5 $18 {[%emt 0:00:21] Hoping for g6.} b5 {[%emt 0:00:34]} 71. g6 {[%emt 0:01:00]} Rc1 {[%emt 0:00:43]} 72. Kg5 $2 {[%emt 0:02:31]} ({Stronger than} 72. axb5+ Kxb5 73. g7 Rc8 $11) (72. Rd3 $1 $18 {White threatens g7 and mate.} Rf1+ 73. Rf3) 72... Rg1+ $2 {[%emt 0:01:06][%mdl 8192]} (72... Kc5 $11 73. Rg4 Rd1) 73. Rg4 {[%emt 0:00:19]} Rd1 {[%emt 0:00:05] [#]} 74. g7 $1 {[%emt 0:00:30]} ({Weaker is} 74. axb5+ Kxb5 75. g7 Rd8 $11) 74... Rd8 {[%emt 0:00:20] [#]} 75. Kf6 $2 {[%emt 0:01:09]} ({White must play} 75. Kf4 $1 $18 Rg8 76. Rg6+ Kc5 77. Rg5+ Kc6 78. axb5+ Kd6 79. Rg6+ Ke7 80. Kf5) 75... bxa4 $11 {[%emt 0:02:07] The position is equal.} 76. g8=Q {[%emt 0:00:13]} Rxg8 {[%emt 0:00:04]} 77. Rxg8 {[%emt 0:00:05] KR-KPP} Kc5 {[%emt 0:00:47]} 78. Rg4 {[%emt 0:01:12]} a3 {[%emt 0:00:18]} 79. Ra4 {[%emt 0:00:55][%csl LRa3,LRa5]} Kb5 {[%emt 0:00:04]} 80. Rxa3 {[%emt 0:00:02] KR-KP} Kb4 {[%emt 0:00:03]} 81. Ra1 {[%emt 0:00:43]} a4 {[%emt 0:00:05][%cal Ba5a4,Ba4a3,Ba3a2][%mdl 32]} 82. Ke5 {[%emt 0:00:03] Threatening mate with Kd4.} a3 {[%emt 0:00:05]} 83. Kd4 {[%emt 0:00:05]} Kb3 {[%emt 0:00:05]} 84. Rb1+ {[%emt 0:00:40]} Kc2 $1 {[%emt 0:00:06]} (84... Ka2 {gets mated.} 85. Rb4 Ka1 86. Kc3 Ka2 87. Rb3 Ka1 88. Rxa3+ Kb1 89. Ra8 Kc1 90. Ra1#) 85. Rh1 {[%emt 0:00:15]} a2 {[%emt 0:00:05]} 86. Kc4 {[%emt 0:00:07] Intending Rh2+ and mate.} Kb2 {[%emt 0:00:10]} 87. Rh2+ {[%emt 0:00:10]} Ka3 $1 {[%emt 0:00:05]} 88. Rh3+ {[%emt 0:00:08]} Kb2 {[%emt 0:00:05]} 89. Rh2+ {[%emt 0:00:16]} Ka3 $1 {[%emt 0:00:03]} 90. Rxa2+ {[%emt 0:00:17]} Kxa2 {[%emt 0:00:04] White really could win this.  Weighted Error Value: White=0.08 (flawless) /Black=0.07 (flawless)} 1/2-1/2

[Event "87th Spanish Championship 2022"]
[Site "Linares"]
[Date "2022.08.17"]
[Round "8.2"]
[White "Moreno Ruiz, Javier"]
[Black "Gines Esteo, Pedro Antonio"]
[Result "1/2-1/2"]
[ECO "B10"]
[WhiteElo "2428"]
[BlackElo "2455"]
[Annotator "TA"]
[PlyCount "94"]
[EventDate "2022.08.11"]
[EventType "swiss"]
[EventCountry "ESP"]
[SourceTitle "playchess.com"]
[Source "ChessBase"]
[SourceQuality "1"]
[TimeControl "5400+30"]

{[%evp 20,94,38,31,65,60,77,62,79,47,72,82,58,63,62,66,43,0,0,4,10,-14,75,-22,-27,-22,-20,-21,-21,-21,-16,-16,-16,-21,-16,-17,-17,-17,-17,-18,-14,-18,-20,-16,-2,-6,0,-25,-27,-23,-23,-24,36,0,0,0,0,0,0,0,0,0,0,0,0,0,0,0,0,0,0,0,0,0,0,0,0]} 1. e4 {[%emt 0:02:09]} c6 {[%emt 0:01:44]} 2. c4 {[%emt 0:00:30]} e5 {[%emt 0:11:32]} 3. Nf3 {[%emt 0:01:13]} d6 {[%emt 0:00:11]} 4. d4 {[%emt 0:00:22]} Nd7 {[%emt 0:00:29]} 5. Nc3 {[%emt 0:01:01]} Ngf6 {[%emt 0:01:38]} 6. Be2 {[%emt 0:00:24]} Be7 {[%emt 0:00:17]} 7. O-O {[%emt 0:00:49]} O-O {[%emt 0:00:02]} 8. Qc2 {[%emt 0:01:19]} a6 {[%emt 0:01:26]} 9. Rd1 {[%emt 0:02:52]} Qc7 {[%emt 0:00:28]} 10. Rb1 {[%emt 0:05:00] has lost popularity (10.h3).} Re8 {[%emt 0:08:54]} 11. b4 {[%emt 0:02:21]} exd4 {[%emt 0:16:00] A55: Old Indian Defence with Nf3 and e4.} 12. Nxd4 {[%emt 0:01:24]} Bf8 {[%emt 0:02:49] [#]} 13. Bf4 $146 {[%emt 0:01:14] White is more active.} ({Predecessor:} 13. a3 Ne5 14. Bg5 Nfd7 15. Rbc1 Ng6 16. f3 h6 17. Be3 Nf6 18. Bf1 a5 19. b5 {0-1 (30) Driessens,P (2311)-Sanduleac,V (2423) Rhodes 2013}) 13... Ne5 {[%emt 0:01:38] White is slightly better.} 14. Bg3 {[%emt 0:09:32]} b5 {[%emt 0:05:30]} 15. cxb5 {[%emt 0:05:05]} cxb5 {[%emt 0:00:25]} 16. Bh4 {[%emt 0:01:40]} Ned7 {[%emt 0:05:25]} 17. Rbc1 {[%emt 0:10:09]} Bb7 $1 {[%emt 0:00:41]} 18. Qb3 {[%emt 0:02:23][%cal Oc3b5] [#] Threatens to win with Ncxb5!} Rac8 {[%emt 0:06:17]} 19. f3 {[%emt 0:01:50]} Qb8 {[%emt 0:01:30][%cal Od6d5]} 20. Bf1 {[%emt 0:03:48]} Qa8 {[%emt 0:10:57]} (20... d5 $11 {keeps the balance.}) 21. Nf5 {[%emt 0:05:20]} (21. a4 $16) 21... d5 $1 $11 {[%emt 0:01:04]} 22. Nxd5 {[%emt 0:02:47]} Bxd5 {[%emt 0:00:14]} 23. exd5 {[%emt 0:00:50]} Rxc1 {[%emt 0:00:55]} 24. Rxc1 {[%emt 0:00:06]} Qxd5 {[%emt 0:06:54]} 25. Qxd5 {[%emt 0:02:31]} Nxd5 {[%emt 0:00:02]} 26. a3 {[%emt 0:01:36]} g6 {[%emt 0:00:26]} 27. Nd4 {[%emt 0:05:44][%cal Od4b5]} Re3 {[%emt 0:00:31]} 28. Rd1 {[%emt 0:02:30] aiming for Nc2.} N7b6 {[%emt 0:01:07] Pair of Knights!} 29. Rd3 {[%emt 0:01:56]} Bg7 {[%emt 0:03:45] [#] And now ...Rxd3 would win.} 30. Nc2 {[%emt 0:02:08]} Rxd3 {[%emt 0:00:11]} 31. Bxd3 {[%emt 0:00:08]} Bb2 {[%emt 0:02:33]} 32. Bf2 {[%emt 0:01:14]} f5 {[%emt 0:03:17]} 33. Bxb6 {[%emt 0:05:18]} Nxb6 {[%emt 0:00:06][%mdl 4096] Endgame KBN-KBN} 34. g4 {[%emt 0:00:10]} fxg4 {[%emt 0:04:10]} 35. fxg4 {[%emt 0:00:08]} Nc4 {[%emt 0:01:09]} ({Black should play} 35... Kf7 $11) 36. a4 {[%emt 0:07:56]} (36. Bxc4+ $5 bxc4 37. Kf2 $11) 36... Kf7 {[%emt 0:01:19] The position is equal.} 37. axb5 {[%emt 0:01:38]} axb5 {[%emt 0:00:01]} 38. Be4 {[%emt 0:01:04]} Kf6 {[%emt 0:01:25]} 39. Bc6 {[%emt 0:00:33]} Nd6 {[%emt 0:00:06]} 40. Kg2 {[%emt 0:00:36]} Kg5 {[%emt 0:00:36]} 41. h3 {[%emt 0:01:34]} Kf4 {[%emt 0:00:15]} 42. Kh2 {[%emt 0:01:14]} Bc3 {[%emt 0:01:02]} 43. Kg2 {[%emt 0:00:41]} Be5 {[%emt 0:00:02]} 44. Na3 {[%emt 0:00:29]} Nc4 {[%emt 0:01:24]} 45. Nc2 {[%emt 0:00:30]} Nd6 {[%emt 0:01:27]} 46. Na3 {[%emt 0:00:11]} Nc4 {[%emt 0:00:13]} 47. Nc2 {[%emt 0:00:06]} Nd6 {[%emt 0:00:34] Weighted Error Value: White=0.10 (very precise) /Black=0.11 (very precise)} 1/2-1/2

[Event "87th Spanish Championship 2022"]
[Site "Linares"]
[Date "2022.08.17"]
[Round "8.3"]
[White "Santos Latasa, Jaime"]
[Black "Merario Alarcon, Andres"]
[Result "1/2-1/2"]
[ECO "D33"]
[WhiteElo "2675"]
[BlackElo "2418"]
[Annotator "TA"]
[PlyCount "60"]
[EventDate "2022.08.11"]
[EventType "swiss"]
[EventCountry "ESP"]
[SourceTitle "playchess.com"]
[Source "ChessBase"]
[SourceQuality "1"]
[TimeControl "5400+30"]

{[%evp 11,60,30,44,14,14,10,17,10,15,15,28,25,25,23,29,0,38,36,56,47,39,35,71,43,63,40,41,42,43,48,41,39,38,0,15,0,46,52,46,27,22,8,9,0,0,0,0,0,0,0,0]} 1. c4 {[%emt 0:00:03]} e6 {[%emt 0:00:05]} 2. Nc3 {[%emt 0:00:05]} d5 {[%emt 0:00:04]} 3. d4 {[%emt 0:00:07]} c5 {[%emt 0:00:51]} 4. cxd5 {[%emt 0:00:29]} exd5 {[%emt 0:00:07]} 5. Nf3 {[%emt 0:00:06]} Nf6 {[%emt 0:00:26]} 6. g3 {[%emt 0:00:06]} Nc6 {[%emt 0:00:35]} 7. a3 {[%emt 0:00:08] D33: Tarrasch Defence: 6 g3 sidelines.} cxd4 {[%emt 0:06:07]} 8. Nxd4 {[%emt 0:00:18]} Bc5 {[%emt 0:00:41]} 9. Be3 {[%emt 0:00:09]} Bb6 {[%emt 0:00:08]} (9... Qb6 $2 10. Na4 Qa5+ 11. b4 Nxb4 12. axb4 Bxb4+ 13. Bd2 $18) 10. Na4 {[%emt 0:00:06] [#]} O-O $146 {[%emt 0:05:44]} ({Predecessor:} 10... Bxd4 11. Bxd4 O-O 12. Bg2 Re8 13. Nc3 Ne4 14. Nxe4 dxe4 15. Bc3 Bg4 16. h3 Bh5 {½-½ (66) Khismatullin,D (2639)-Lorparizangeneh,S (2519) Moscow 2017}) 11. Nxb6 {[%emt 0:00:12]} axb6 {[%emt 0:00:26]} 12. Nf3 {[%emt 0:00:11]} Re8 {[%emt 0:05:37]} 13. Bg2 {[%emt 0:01:14]} Bf5 {[%emt 0:07:06][%cal Oe8e3]} (13... Rxe3 $5 14. fxe3 Qe7 $14) 14. O-O {[%emt 0:01:02]} Be4 {[%emt 0:00:57]} 15. Rc1 {[%emt 0:04:45]} h6 {[%emt 0:06:26]} 16. Bd4 {[%emt 0:10:50]} b5 {[%emt 0:08:26]} 17. Bc3 {[%emt 0:04:31] A strong pair of Bishops.} Qd6 {[%emt 0:06:04]} 18. Nd4 {[%emt 0:03:57]} Nxd4 {[%emt 0:00:36]} 19. Bxd4 {[%emt 0:00:54]} Bxg2 {[%emt 0:00:42]} 20. Kxg2 {[%emt 0:00:12]} Ne4 {[%emt 0:03:10]} 21. e3 {[%emt 0:03:16]} Qd7 {[%emt 0:03:07]} 22. h3 {[%emt 0:03:02]} Rac8 {[%emt 0:02:34]} 23. Qg4 {[%emt 0:05:00][%csl Gd4][%cal Rg4g7]} f5 {[%emt 0:05:41]} (23... Qxg4 $11 24. hxg4 Rc6) 24. Qg6 $14 {[%emt 0:04:52] aiming for Rxc8.} Qf7 {[%emt 0:01:05]} 25. Qb6 {[%emt 0:01:14]} Qd7 {[%emt 0:01:18]} 26. Rfd1 {[%emt 0:02:23] The position is equal.} Kh7 {[%emt 0:00:22]} 27. h4 {[%emt 0:01:01]} Re6 {[%emt 0:02:26]} 28. Qa5 {[%emt 0:00:10]} Rec6 {[%emt 0:02:07]} 29. Rxc6 {[%emt 0:06:36]} ({Much worse is} 29. Qxb5 Nxf2 $1 {[%mdl 512]} 30. Qxc6 Rxc6 $17) 29... Rxc6 {[%emt 0:04:34]} 30. Bc3 {[%emt 0:02:33]} ({Reject} 30. Qxb5 {[#]} Nxf2 $1 31. Rc1 Ne4 32. Rxc6 bxc6 $17) 30... Rc4 {[%emt 0:06:18] Weighted Error Value: White=0.09 (flawless) /Black=0.09 (flawless)} 1/2-1/2

[Event "87th Spanish Championship 2022"]
[Site "Linares"]
[Date "2022.08.17"]
[Round "8.4"]
[White "Perez Candelario, Manuel"]
[Black "Garcia Ramos, Daniel"]
[Result "1-0"]
[ECO "C67"]
[WhiteElo "2578"]
[BlackElo "2438"]
[Annotator "TA"]
[PlyCount "69"]
[EventDate "2022.08.11"]
[EventType "swiss"]
[EventCountry "ESP"]
[SourceTitle "playchess.com"]
[Source "ChessBase"]
[SourceQuality "1"]
[TimeControl "5400+30"]

{[%evp 9,69,14,25,0,0,0,0,0,26,20,35,36,31,31,30,25,34,40,33,36,43,35,37,35,33,33,33,29,86,72,143,138,147,141,170,179,198,172,344,344,336,297,297,230,297,297,297,297,297,297,297,297,297,297,297,297,290,282,376,360,363,358]} 1. e4 {[%emt 0:00:47]} e5 {[%emt 0:00:15]} 2. Nf3 {[%emt 0:00:05]} Nc6 {[%emt 0:00:08]} 3. Bb5 {[%emt 0:00:04]} Nf6 {[%emt 0:00:16]} 4. O-O {[%emt 0:00:32]} Nxe4 {[%emt 0:00:34]} 5. Re1 {[%emt 0:00:18]} Nd6 {[%emt 0:00:13]} 6. a4 {[%emt 0:00:15] C67: Ruy Lopez: Berlin Defence: 4 0-0 Nxe4.} Be7 {[%emt 0:01:32]} 7. Nc3 {[%emt 0:00:54] Inhibits e4.} O-O {[%emt 0:01:01]} 8. d4 {[%emt 0:07:04] The position is equal.} Nxb5 {[%emt 0:15:31]} (8... exd4 {seems wilder.} 9. Nd5 Re8 10. Bf4 b6) 9. axb5 {[%emt 0:01:51]} Nxd4 {[%emt 0:00:06]} 10. Nxd4 {[%emt 0:10:13]} exd4 {[%emt 0:00:07]} 11. Nd5 {[%emt 0:00:33]} ({Much worse is} 11. Qxd4 c6 $15) 11... Bf6 {[%emt 0:05:38]} 12. Qf3 {[%emt 0:06:59]} d6 {[%emt 0:13:13]} 13. Nxf6+ {[%emt 0:00:43]} Qxf6 {[%emt 0:00:25]} 14. Qxf6 {[%emt 0:00:04]} gxf6 {[%emt 0:00:06]} 15. Bh6 {[%emt 0:02:08]} Rd8 {[%emt 0:04:27]} 16. Re7 $36 {[%emt 0:32:25][%mdl 2048] [#] White has good play.} Bd7 $146 {[%emt 0:17:52]} ({Predecessor:} 16... Bf5 17. Rxc7 Rac8 18. Rxc8 Rxc8 19. Rxa7 Bxc2 20. Rxb7 d3 21. b6 Ba4 22. f3 f5 {1-0 (68) Lampert,J (2500)-Levin,F (2528) Germany 2016}) 17. h4 {[%emt 0:01:02] Threatens to win with Ra3.} Bxb5 {[%emt 0:02:33]} 18. Rxc7 {[%emt 0:00:33]} Rac8 {[%emt 0:16:45]} (18... a6 $11 {keeps the balance.}) 19. Rxb7 $16 {[%emt 0:01:58] White now steadily converts the win.} Bc6 {[%emt 0:07:54]} ({Black should try} 19... a6) 20. Rbxa7 {[%emt 0:02:13] White is more active.} Be4 {[%emt 0:01:38]} 21. R1a4 {[%emt 0:03:20]} Rxc2 {[%emt 0:05:12]} 22. Rxd4 {[%emt 0:00:05]} Bf5 {[%emt 0:00:08]} 23. Ra3 {[%emt 0:04:02] Hoping for Rg3+.} d5 $2 {[%emt 0:04:51] [#]} (23... Bg6 24. Rxd6 Re8) 24. Rg3+ $18 {[%emt 0:01:52]} Bg6 {[%emt 0:00:06]} 25. h5 {[%emt 0:01:26]} Rxb2 {[%emt 0:00:05]} 26. hxg6 {[%emt 0:00:38]} hxg6 {[%emt 0:01:18]} 27. Bd2 {[%emt 0:00:17]} Kg7 {[%emt 0:00:49]} 28. Rgd3 {[%emt 0:00:44]} Rb1+ {[%emt 0:00:49]} 29. Kh2 {[%emt 0:00:05]} Rb5 {[%emt 0:00:11]} 30. g3 {[%emt 0:00:32]} g5 {[%emt 0:00:08]} 31. Kg2 {[%emt 0:00:24]} Kg6 {[%emt 0:00:04]} 32. Rb4 {[%emt 0:01:59]} Rxb4 {[%emt 0:01:02]} 33. Bxb4 {[%emt 0:00:04]} Kf5 {[%emt 0:00:14]} 34. Be7 {[%emt 0:00:59]} Ra8 {[%emt 0:01:48]} 35. Rf3+ {[%emt 0:01:25] Weighted Error Value: White=0.06 (flawless) /Black=0.23 (precise)} ({Don't take} 35. Rxd5+ Ke6 $18) 1-0